Cogmind - Beta 16 @@@ ROGUE MODE // 2026.01.16 @ 10:31:29 Player: leto Result: Destroyed by G-47 Trooper with Particle Gun Performance ------------- Evolutions (0) 0 Regions Visited (2) 400 Robots Destroyed (29) 145 Value Destroyed (606) 606 Prototype IDs (0) 0 Alien Tech Used (0) 0 Bonus (0) 0 TOTAL SCORE: 1151 Bonus ------- None Cogmind --------- Core Integrity 0/250 Matter 240/300 Energy 230/250 System Corruption 1% Temperature Cool (15) Movement Rolling (135) Ox3 Location -10/Mines Parts ------- > --- POWER (1) -------- Ion Engine > --- PROPULSION (2) --- Wheel Compact Wheel > --- UTILITY (2) ------ Huge Storage Unit Machine Analyzer > --- WEAPON (2) ------- Medium Laser Grenade Launcher > --- INVENTORY (25) --- Light Ion Engine Large Matter Pod (150) Structural Scanner Terrain Scanner Hacking Suite EM Pulse Gun EM Pulse Gun EM Pulse Gun EM Pulse Gun Medium Laser Mining Laser Mining Laser Peak State ------------ > --- POWER ------------ Ion Engine > --- PROPULSION ------- Wheel Compact Wheel > --- UTILITY ---------- Huge Storage Unit Machine Analyzer > --- WEAPON ----------- Medium Laser Medium Laser > --- INVENTORY -------- Light Ion Engine Large Matter Pod Structural Scanner Terrain Scanner Hacking Suite EM Pulse Gun EM Pulse Gun EM Pulse Gun EM Pulse Gun [Rating: 10] Favorites ----------- Power Ion Engine Engine Ion Engine Propulsion Light Treads Treads Light Treads Wheel Wheel Utility Huge Storage Unit Device Heat Sink Storage Huge Storage Unit Processor Machine Analyzer Protection Propulsion Shielding Weapon Medium Laser Energy Gun Medium Laser Launcher Grenade Launcher Build | -11 -10 -10 ------- Run | Yrd Mat Min Slots Evolved . | . . . Power . | . . . Propulsion . | . . . Utility . | . . . Weapon . | . . . Parts Attached 16 | 6 9 1 Power 3 | 2 1 . Engine 3 | 2 1 . Core . | . . . Reactor . | . . . Propulsion 4 | 2 2 . Treads 2 | 2 . . Leg . | . . . Wheel 2 | . 2 . Hover . | . . . Flight . | . . . Utility 5 | 1 4 . Device 1 | . 1 . Storage 2 | 1 1 . Processor 1 | . 1 . Hackware . | . . . Protection 1 | . 1 . Artifact . | . . . Weapon 4 | 1 2 1 Energy Gun 3 | 1 2 . Energy Cannon . | . . . Ballistic Gun . | . . . Ballistic Cannon . | . . . Launcher 1 | . . 1 Special Weapon . | . . . Impact Weapon . | . . . Slashing Weapon . | . . . Piercing Weapon . | . . . Special Melee Weapon . | . . . Unidentified Prototypes . | . . . Parts Lost 4 | . 4 . Power 1 | . 1 . Propulsion 2 | . 2 . Utility . | . . . Weapon 1 | . 1 . Highest Loss Streak 2 | . 2 . To Critical Strikes . | . . . Average Backups 6 | 3 6 12 Power 1 | . 1 1 Propulsion 1 | 1 1 . Utility 2 | . 2 4 Weapon 1 | 1 . 7 Tool/Special . | . . . Unused Backups 9 | . 1 8 Power . | . . . Propulsion 1 | . 1 . Utility 4 | . . 4 Weapon 4 | . . 4 Tool/Special . | . . . Average Slot Usage (%) 91 | . 91 100 Engine 14 | . 14 14 Treads 21 | . 22 . Wheel 5 | . 4 28 Device 2 | . 2 . Storage 14 | . 14 14 Processor 1 | . . 14 Protection 3 | . 3 . Energy Gun 27 | . 28 23 Peak Build Rating 10 | 5 10 10 Average Rating 6 | 3 6 10 On Entrance 5 | . 5 10 Avg Prop Armor Cover (%) . | . . . Naked Turns . | . . . Heaviest Build 90 | 12 90 89 Greatest Support 40 | 40 40 26 Greatest Overweight (x) 4 | 3 4 3 Average Overweight (x) 2 | . 2 3 Largest Inventory Capacity 25 | 8 25 25 Average Capacity 23 | 7 24 25 Most Carried 12 | 5 12 12 Average Carried 6 | 3 6 12 Final Capacity 25 | 8 25 25 Final Carried 12 | 5 12 12 Class Distribution -------------------- 100% | Mutant Dominant Class ---------------- Mutant | -10/Materials Mutant | -10/Mines Resources | -11 -10 -10 ----------- Run | Yrd Mat Min Matter Collected 588 | 260 328 . Remotely . | . . . Salvage Created 937 | . 925 12 Parts 53 | . 52 1 Haulers Intercepted 2 | . 2 . Recyclers Shooed 3 | . 3 . Parts Field Recycled . | . . . Retrieved Matter . | . . . Parts Self-Destructed . | . . . Prevented . | . . . Parts Restored . | . . . Kills | -11 -10 -10 ------- Run | Yrd Mat Min Combat Hostiles Destroyed 21 | . 18 3 Guns 14 | . 14 . AOE 5 | . 2 3 Classes Destroyed 8 | . 8 . Worker 1 | . 1 . Builder 1 | . 1 . Hauler 2 | . 2 . Recycler 1 | . 1 . Operator 2 | . 2 . Watcher 1 | . 1 . Swarmer 8 | . 5 3 Grunt 13 | . 13 . Best Kill Streak 3 | . 3 3 Combat Bots Only 3 | . 3 3 Max Kills in Single Turn 2 | . 2 2 Gunslinging . | . . . Exploded 2 | . 1 2 Melee . | . . . Uniques/NPCs Destroyed . | . . . Combat | -11 -10 -10 -------- Run | Yrd Mat Min Hostile Shots Fired 101 | . 94 7 Missed 21 | . 20 1 Hits 80 | . 74 6 Projectile 80 | . 74 6 Damage Taken 908 | . 794 114 Core 261 | . 203 58 Absorbed by Shields . | . . . Redirected to Shielding 30 | . 30 . Core Remaining (%) 100 | 100 . . Volleys Fired 77 | . 75 2 Largest 2 | . 2 2 Hottest 100 | . 100 80 Shots Fired 154 | . 150 4 Gun 152 | . 150 2 Cannon . | . . . Launcher 2 | . . 2 Special . | . . . Kinetic . | . . . Thermal 125 | . 123 2 Explosive 2 | . . 2 Electromagnetic 27 | . 27 . Robot Hit Streak 10 | . 10 10 Robot Miss Streak 3 | . 3 . Penetration Max . | . . . Secondary Targets . | . . . Shots Hit Robots 95 | . 91 4 Core Hits 42 | . 39 3 Critical Kills . | . . . Critical Parts Destroyed . | . . . Critical Strikes 10 | . 10 . Burn 10 | . 10 . Melee Attacks . | . . . Impact . | . . . Slashing . | . . . Piercing . | . . . Sneak Attacks . | . . . Combat Hostiles . | . . . Follow-up Attacks . | . . . Damage Inflicted 1478 | . 1298 180 Guns 1218 | . 1192 26 Cannons . | . . . Explosions 260 | . 106 154 Melee . | . . . Ramming . | . . . Kinetic . | . . . Thermal 1095 | . 1069 26 Explosive 154 | . . 154 Electromagnetic 229 | . 229 . Impact . | . . . Slashing . | . . . Piercing . | . . . Highest Corruption 1 | . 1 1 Average Corruption 1 | . 1 1 Corruption Purged . | . . . Corruption Blocked . | . . . Effects 15 | . 15 . Message Errors 4 | . 4 . Matter Fused 3 | . 3 . Heat Flow Errors 4 | . 4 . Energy Discharges 2 | . 2 . Data Loss (minor) 1 | . 1 . Misfires 1 | . 1 . Overload Shots . | . . . Overflow Damage . | . . . Projectiles . | . . . Explosions . | . . . Melee . | . . . Knockbacks . | . . . Impact . | . . . Kinetic . | . . . Secondary . | . . . Self-Inflicted Damage 83 | . 32 51 Shots 3 | . 1 2 Rammed . | . . . Targets Rammed . | . . . Kicked . | . . . Crushed . | . . . Highest Temperature 488 | . 488 36 Average Temperature 116 | . 118 20 Received Heat Transfer 327 | . 312 15 Effects 6 | . 6 . Shutdowns 2 | . 2 . Energy Bleed 1 | . 1 . Interference 2 | . 2 . Matter Decay 1 | . 1 . Siege Activations . | . . . Martial Activations . | . . . Shielding Activations . | . . . Robots Disrupted . | . . . Combat Hostiles . | . . . Robots Corrupted . | . . . Combat Hostiles . | . . . Parts Fried 1 | . 1 . Impact Corruptions . | . . . Robots Melted 2 | . 2 . Combat Hostiles 2 | . 2 . Parts Melted 7 | . 7 . Heat Transferred 3713 | . 3639 74 Parts Sabotaged . | . . . Parts Stolen . | . . . Parts Stripped . | . . . Power Chain Reactions 2 | . 2 . Alert | -11 -10 -10 ------- Run | Yrd Mat Min Maximum Alert Level . | . . . Low Security (%) 100 | 100 100 100 Level 1 . | . . . Level 2 . | . . . Level 3 . | . . . Level 4 . | . . . Level 5 . | . . . High Security . | . . . Max Security . | . . . Peak Influence 143 | . 143 107 Initial 15 | . . 15 Average 61 | . 63 94 Influence Increases 594 | . 502 92 Destroy 0b10 Robot/C 420 | . 360 60 Destroy 0b10 Robot/NC 40 | . 40 . Destroy Leader 86 | . 76 10 Successful Hack 5 | . 5 . Disable Machine 30 | . 15 15 Destroy Structure 13 | . 6 7 Influence Decreases 507 | . 463 44 Entered New Map 24 | . . 24 Time Decay 443 | . 423 20 Lost Part 40 | . 40 . Squads Dispatched 6 | . 6 . Investigation 4 | . 4 . Extermination . | . . . Reinforcement 2 | . 2 . Assault . | . . . Garrison . | . . . Intercept . | . . . Searches Triggered . | . . . Construction Impeded . | . . . Haulers Reinforced . | . . . Active Scanning Responses . | . . . Cargo Convoy Interrupts . | . . . Stealth | -11 -10 -10 --------- Run | Yrd Mat Min Distress Signals 1 | . 1 . Communications Jammed . | . . . Distress Signals . | . . . Times Spotted 34 | . 29 5 Peak Tracking Total 4 | . 4 3 Tactical Retreats . | . . . Traps | -11 -10 -10 ------- Run | Yrd Mat Min Traps Triggered 3 | . 3 . Indirectly . | . . . Trap Hack Attempts . | . . . Triggered . | . . . Disarmed . | . . . Reprogrammed . | . . . Reused . | . . . Traps Extracted . | . . . Installed . | . . . Triggered . | . . . Machines | -11 -10 -10 ---------- Run | Yrd Mat Min Machines Disabled 2 | . 1 1 Max in Single Turn 1 | . 1 1 Machines Repaired . | . . . Machines Dismantled . | . . . Machines Sabotaged . | . . . Overloaded Fab Kills . | . . . Hacking | -11 -10 -10 --------- Run | Yrd Mat Min Machines Accessed 4 | . 4 . Terminals 3 | . 3 . Fabricators . | . . . Repair Stations 1 | . 1 . Recycling Units . | . . . Scanalyzers . | . . . Garrison Access . | . . . Total Hacks 10 | . 10 . Successful 2 | . 2 . Failed 8 | . 8 . Catastrophic 3 | . 3 . Database Lockouts . | . . . Manual 7 | . 7 . Terminals 7 | . 7 . Fabricators . | . . . Repair Stations 3 | . 3 . Recycling Units . | . . . Scanalyzers . | . . . Garrison Access . | . . . Terminal Hacks . | . . . Fabricator Hacks . | . . . Repair Station Hacks . | . . . Recycling Unit Hacks . | . . . Scanalyzer . | . . . Garrison Access Hacks . | . . . Unauthorized Hacks 2 | . 2 . Terminals 2 | . 2 . Botnet 1 | . 1 . Operators 1 | . 1 . Fabricators . | . . . Repair Stations . | . . . Recycling Units . | . . . Scanalyzers . | . . . Garrison Access . | . . . Data Cores Recovered . | . . . Used . | . . . Hacking Detections 4 | . 4 . Full Trace Events 2 | . 2 . Feedback Events . | . . . Feedback Blocked . | . . . Robot Schematics Acquired . | . . . Robots Built . | . . . Authchips . | . . . Time . | . . . Total Robot Build Rating . | . . . Part Schematics Acquired . | . . . Parts Built . | . . . Authchips . | . . . Time . | . . . Total Part Build Rating . | . . . Part Studies Acquired . | . . . Parts Repaired . | . . . Time . | . . . Parts Recycled . | . . . Recycled Matter . | . . . Retrieved Matter . | . . . Retrieved Components . | . . . Parts Scanalyzed . | . . . Part Schematics Acquired . | . . . Parts Damaged . | . . . Bothacking | -11 -10 -10 ------------ Run | Yrd Mat Min Used RIF Installer . | . . . Robots Hacked . | . . . Non-combat . | . . . Combat . | . . . Robot Hacks Applied . | . . . Relay Couplers Released . | . . . Fabnet Peak Effective % . | . . . Robots Rewired . | . . . Allies Hacked . | . . . Hacks Repelled . | . . . Allies | -11 -10 -10 -------- Run | Yrd Mat Min Total Allies . | . . . Largest Group . | . . . Highest-Rated Group . | . . . Highest-Rated Ally . | . . . Total Orders . | . . . Ally Attacks . | . . . Total Damage . | . . . Kills . | . . . Allies Corrupted . | . . . Allies Melted . | . . . Intel | -11 -10 -10 ------- Run | Yrd Mat Min Active Infowar (turns) 167 | . 121 46 Machine Analysis 167 | . 121 46 Robot Analysis Total . | . . . Derelict Logs Recovered . | . . . Drone Launches . | . . . Drone Recoveries . | . . . Exploration | -11 -10 -10 ------------- Run | Yrd Mat Min Turns Passed 1800 | 71 1683 46 Spaces Moved 587 | 39 522 26 Core 15 | 15 . . Treads 363 | 24 339 . Legs . | . . . Wheels 209 | . 183 26 Hover . | . . . Flight . | . . . Fastest Speed 50 | 50 135 135 Average Speed 237 | 151 248 135 Slowest Speed 480 | 200 480 135 Overloaded Moves . | . . . Propulsion Burnouts . | . . . Robots Hopped . | . . . Potential Cave-ins . | . . . Cave-ins Triggered . | . . . Exploration Rate (%) 33 | 4 82 14 Regions Visited 2 Branch Regions 1 Pre-discovered Areas . | . . . Known Exits Taken . | . . . Unknown Exits Taken 2 | 1 1 . Scrap Searched . | . . . Spaces Dug . | . . . Terrain Destroyed 12 | . 4 8 Melee . | . . . Projectile . | . . . AOE 12 | . 4 8 Terrain Rammed . | . . . Walls Destroyed . | . . . Machines Disabled . | . . . Actions | -11 -10 -10 --------- Run | Yrd Mat Min Total 836 | 48 756 32 Wait 136 | . 136 . Move 585 | 38 521 26 Hop . | . . . Pick Up 16 | 4 12 . Fast Attach 7 | 5 2 . Attach 6 | . 5 1 Detach 1 | . . 1 Swap 6 | 1 3 2 Drop 2 | . 2 . Fire 77 | . 75 2 Melee . | . . . Ram . | . . . Kick . | . . . Crush . | . . . Escape Stasis . | . . . Rewire . | . . . Trap . | . . . Miscellaneous . | . . . Route ------- -11/Scrapyard -10/Materials (discovered 4 exits: [*Mat x2] / [*Min] / [*Sub]) -10/Mines History --------- Turn | Location | Event 43 | -11/Scrapyard | Discovered new exit (range 15) 72 | -11/Scrapyard | Entered Materials 240 | -10/Materials | Discovered new exit (range 11) 304 | -10/Materials | Build established: Mutant 572 | -10/Materials | Derelicts attacked the area 850 | -10/Materials | Discovered new exit (range 16) 911 | -10/Materials | Core integrity fell below 50% 1201 | -10/Materials | Discovered new exit (range 13) 1481 | -10/Materials | Core integrity fell below 20% 1737 | -10/Materials | Discovered new exit (range 6) 1755 | -10/Materials | Entered Mines 1801 | -10/Mines | Destroyed by G-47 Trooper with Particle Gun Last Messages --------------- Acquired 56 matter. Acquired EM Pulse Gun. Acquired 22 matter. System corrupted: Heat flow error (+198). Acquired 71 matter. R-06 Scavenger collects Terrain Scanner. Acquired Machine Analyzer. K-01 Serf cleans the Pressure Siphon. Acquired Grenade Launcher. >> Machine Analyzer network decryption results: Terminal x2 OGV6RTZ&|/> QOKX/#WVPXLDWTCCF&% G EXIT=FOUND Acquired Mining Laser. LOCATION=UNKNOWN GOAL=ESCAPE S-10 Pest destroyed. Core Extractor disabled. S-10 Pest destroyed. The unstable cave ceiling collapses. Map ----- +----------------------------------------------------+ | | | | | | | ?????????????????????????????????### ####????????? | | ????????????????????????????##### # ##???????? | | ????????????????????????????# % #???????? | | ????????????????????????????# #???????? | | ????????????????????????????# #???????? | | ????????????????????????????# [ #???????? | | ?????????????????###????##??# " #???????? | | ???????????????### ???? #?# #???????? | | ??????????????## ????# #?# #???????? | | ?????????????## ????# #?# #???????? | | ?????????????# ##??# #?##### ########???????? | | ?????????????# ##?# #?????# #??????????????? | | ?????????????# #?# #?????# #??????????????? | | ??????????????# #?# ####### #??????????????? | | ????????????????# ### ## #??????????????? | | ?????????????????# ######??????????????? | | ?????????????????## ########???????????????????? | | ??????????????????# ##?????????????????????????? | | ??????????????????# ##????????????????????????? | | ??????????????????## ##???????????????????????? | | ???????????????????#### ##??????????????????????? | | ??????????????????????## ##?????????????????????? | | ???????????????????????# @ #?????????????????????? | | ???????????????????????# #?????????????????????? | | ??????????????????????#g ????????????????????? | | ?????????????????????# g ???????????????????? | | ???????????????????? #####??????????????????? | | ???????????????????#### ##??????????????????????? | | ??????????????????????####???????????????????????? | | ?????????????????????????????????????????????????? | | ?????????????????????????????????????????????????? | | ?????????????????????????????????????????????????? | | ?????????????????????????????????????????????????? | | ?????????????????????????????????????????????????? | | ?????????????????????????????????????????????????? | | ?????????????????????????????????????????????????? | | ?????????????????????????????????????????????????? | | ?????????????????????????????????????????????????? | | ?????????????????????????????????????????????????? | | ?????????????????????????????????????????????????? | | ?????????????????????????????????????????????????? | | ?????????????????????????????????????????????????? | | ?????????????????????????????????????????????????? | | ?????????????????????????????????????????????????? | | ?????????????????????????????????????????????????? | | ?????????????????????????????????????????????????? | | ?????????????????????????????????????????????????? | +----------------------------------------------------+ Best States ------------- Heat Dissipation 35 Energy Generation 10 Energy Capacity 250 Matter Stores 300 Matter Capacity 300 Sight Range 16 Terrain Scan Density 10 Propulsion Shielding 33 Evasion (%) 40 Recoil Reduction 2 Item Schematics ----------------- None Robot Schematics ------------------ None Fabricated ------------ Nothing Repaired ---------- Nothing Studied --------- None Alien Tech Used ----------------- None Achievements -------------- None Challenges ------------ None Game ------ Seed WarlordNeutronFlamer Manual? 0 Play Time 00:07:49 Cumulative 24.3 hours Start 2026.01.16 @ 10:24:00 End 2026.01.16 @ 10:31:29 Sessions 1 Manual Loads 0 Difficulty Rogue Special Mode None Game No. 27 Rogue 27 Adventurer 0 Explorer 0 Win Type - Total 0 Types 0/0/0/0/0/0/0/0/0/0 Lore% 13 Gallery% 27 Achievement% 27 Wizard Run 0 Options --------- Layout 1 ASCII 0 Keyboard 1 Movement Vi Keybinds 0 Fullscreen 1 Font 24/Smallcaps Map View 50x35 Zoom Use 0% Tactical HUD 0 Map Filters NONE Filters NONE Steam 1 RUN: f4792f41-ceac-4a3d-ba3f-9d291b251d73